bitfinex-derivatives/quotes_SOLF0:USTF0_20250109
["timestamp","ask_amount","ask_price","bid_price","bid_amount"]
[1736420830864,10.44332575,191.84,191.75,64.66718923]
[1736420831576,2.6083,191.78,191.75,64.66718923]
[1736420832663,10.44332575,191.84,191.75,64.66718923]
[1736420832969,2.6081,191.8,191.75,64.66718923]
[1736420833169,10.44332575,191.84,191.76,2.6085]
[1736420833363,2.6082,191.79,191.76,2.6085]
[1736420833763,10.44332575,191.84,191.76,2.6085]
[1736420833968,1.4967,191.87,191.75,64.66718923]
[1736420834268,10.44332575,191.88,191.76,10.44332575]
[1736420834473,10.44332575,191.91,191.79,10.44332575]
[1736420834867,10.44332575,191.91,191.86,2.6072]
[1736420835069,10.44332575,191.91,191.79,10.44332575]
[1736420835272,10.44332575,191.94,191.82,10.44332575]
[1736420835473,2.6067,191.9,191.85,2.6072]
[1736420835673,10.44332575,191.94,191.82,10.44332575]
[1736420836173,2.6071,191.87,191.82,2.6077]
[1736420836968,2.6069,191.88,191.83,2.6075]
[1736420837167,2.6069,191.88,191.79,10.44332575]
[1736420837569,10.44332575,191.91,191.84,2.6075]
[1736420837570,2.6068,191.89,191.84,2.6075]
[1736420839077,2.6069,191.88,191.84,2.6075]
[1736420839371,10.44332575,191.91,191.83,2.6076]
[1736420839574,10.44332575,191.91,191.79,10.44332575]
[1736420839874,2.607,191.88,191.79,10.44332575]
[1736420840473,2.6071,191.87,191.79,10.44332575]
[1736420840771,10.44332575,191.87,191.76,19.69702575]
[1736420841174,10.44332575,191.87,191.79,2.608]
[1736420841774,2.6075,191.84,191.8,2.608]
[1736420843066,10.44332575,191.87,191.76,19.69702575]
[1736420843268,10.44332575,191.84,191.76,3.1099]
[1736420843771,10.44332575,191.81,191.75,64.66718923]
[1736420844475,2.6086,191.76,191.75,64.66718923]
[1736420844677,2.6086,191.76,191.72,2.6091]
[1736420844975,10.44332575,191.78,191.69,4.5705]
[1736420845370,2.6089,191.74,191.69,7.18]
[1736420845677,10.44332575,191.78,191.69,7.18]
[1736420846182,2.6089,191.74,191.69,7.18]
[1736420846476,2.6092,191.71,191.68,5.24974015]
[1736420847675,10.44332575,191.75,191.68,5.24974015]
[1736420848067,10.44332575,191.75,191.61,16.57342575]
[1736420848068,10.44332575,191.75,191.62,10.44332575]
[1736420848371,2.6094,191.71,191.66,2.6099]
[1736420848579,4.6566,191.87,191.68,10.44332575]
[1736420848772,4.6566,191.87,191.71,10.44332575]
[1736420848773,10.44332575,191.83,191.71,10.44332575]
[1736420848973,2.6083,191.79,191.73,2.6089]
[1736420849168,10.44332575,191.83,191.73,2.6089]
[1736420849567,10.44332575,191.83,191.72,2.6091]
[1736420849869,10.44332575,191.77,191.69,1.6009]
[1736420850274,10.44332575,191.77,191.69,4.2104]
[1736420850875,2.6089,191.74,191.69,4.2104]
[1736420851376,10.44332575,191.77,191.69,1.6009]
[1736420851582,2.6091,191.72,191.65,5.25041303]
[1736420851776,10.44332575,191.74,191.65,5.25041303]
[1736420852175,2.6092,191.72,191.66,2.6099]
[1736420852372,10.44332575,191.74,191.66,2.6099]
[1736420853779,10.44332575,191.74,191.67,2.6097]
[1736420854484,2.6093,191.71,191.67,2.6097]
[1736420855485,2.6093,191.71,191.65,5.25041303]
[1736420855486,10.44332575,191.71,191.65,5.25041303]
[1736420855877,2.6099,191.67,191.65,5.25041303]
[1736420856084,10.44332575,191.71,191.65,5.25041303]
[1736420857582,10.44332575,191.71,191.65,7.86041303]
[1736420857784,10.44332575,191.71,191.65,5.25041303]
[1736420858082,13.47370343,191.79,191.65,5.25041303]
[1736420858083,10.44332575,191.74,191.65,5.25041303]
[1736420858287,2.6093,191.71,191.67,2.6098]
[1736420858482,10.44332575,191.74,191.65,5.25041303]
[1736420859688,10.44332575,191.71,191.65,5.25041303]
[1736420859889,13.05222575,191.74,191.66,2.6099]
[1736420860187,10.44332575,191.74,191.65,5.25041303]
[1736420860390,2.6092,191.72,191.68,2.6095]
[1736420860581,10.44332575,191.74,191.68,2.6095]
[1736420860785,10.44332575,191.74,191.65,5.25041303]
[1736420861190,2.6094,191.7,191.65,5.25041303]
[1736420862088,2.6094,191.7,191.66,2.6099]
[1736420863191,10.44332575,191.74,191.66,2.6099]
[1736420863384,10.44332575,191.74,191.65,5.25041303]
[1736420863586,10.44332575,191.71,191.65,5.25041303]
[1736420864086,2.6099,191.66,191.65,5.25041303]
[1736420864985,10.44332575,191.68,191.58,1.6094]
[1736420866093,2.6105,191.62,191.58,4.2203]
[1736420866284,10.44332575,191.68,191.58,1.6094]
[1736420866480,2.6101,191.65,191.61,2.6105]
[1736420866688,10.44332575,191.68,191.58,1.6094]
[1736420867192,10.44332575,191.65,191.58,2.611]
[1736420867386,10.44332575,191.65,191.56,66.29692514]
[1736420867789,2.6107,191.61,191.57,2.6111]
[1736420868186,2.6107,191.6,191.56,66.29692514]
[1736420868388,2.6107,191.6,191.56,68.90812514]
[1736420868591,10.44332575,191.65,191.56,66.29692514]
[1736420868794,2.6106,191.61,191.56,66.29692514]
[1736420869295,10.44332575,191.65,191.59,2.6107]
[1736420869495,10.44332575,191.65,191.56,66.29692514]
[1736420870790,2.6103,191.63,191.56,66.29692514]
[1736420870989,10.44332575,191.65,191.56,66.29692514]
[1736420871188,2.6104,191.63,191.58,2.6109]
[1736420871491,10.44332575,191.65,191.58,2.6109]
[1736420871689,2.6108,191.6,191.57,2.6111]
[1736420873590,2.6106,191.61,191.57,2.6111]
[1736420875395,2.6105,191.62,191.58,2.6109]
[1736420875894,10.44332575,191.69,191.56,76.74025089]
[1736420876298,2.6101,191.65,191.59,2.6107]
[1736420876595,2.6101,191.65,191.56,76.74025089]
[1736420877887,2.6101,191.65,191.61,2.6105]
[1736420878091,10.44332575,191.69,191.59,10.44332575]
[1736420878286,10.44332575,191.69,191.6,1.624]
[1736420878689,10.44332575,191.69,191.64,2.6101]
[1736420878690,2.6097,191.68,191.64,2.6101]
[1736420879197,2.6098,191.67,191.6,1.624]
[1736420879895,2.6101,191.65,191.61,2.6106]
[1736420880093,10.44332575,191.69,191.61,2.6106]
[1736420880295,2.6102,191.64,191.61,2.6106]
[1736420880895,2.6106,191.62,191.58,2.611]
[1736420881091,10.44332575,191.66,191.56,66.29692514]
[1736420881397,2.611,191.59,191.56,64.72842514]
[1736420881801,10.44332575,191.63,191.52,1.5641]
[1736420882690,4.58,191.65,191.53,10.44332575]
[1736420883496,2.6103,191.64,191.53,10.44332575]
[1736420884598,2.6103,191.64,191.6,2.6107]
[1736420885202,10.44332575,191.72,191.59,10.44332575]
[1736420885392,15.02332575,191.72,191.6,1.6112]
[1736420885599,15.02332575,191.72,191.6,4.7075]
[1736420886100,2.6097,191.68,191.6,4.7075]
[1736420886296,10.44332575,191.72,191.6,4.7075]
[1736420887197,2.6099,191.67,191.62,2.6104]
[1736420887403,10.44332575,191.69,191.6,4.7075]
[1736420888503,10.44332575,191.69,191.56,10.44332575]
[1736420888801,2.6105,191.63,191.56,10.44332575]
[1736420889499,4.58,191.74,191.56,10.44332575]
[1736420889500,2.6105,191.62,191.56,10.44332575]
[1736420889709,15.04332575,191.66,191.55,3.1122]
[1736420890001,2.6107,191.61,191.55,5.7235]
[1736420890202,10.44332575,191.63,191.55,3.1122]
[1736420890504,15.04332575,191.66,191.55,3.1122]
[1736420890904,2.6104,191.63,191.58,2.611]
[1736420891105,2.6104,191.63,191.55,3.1122]
[1736420891608,2.6102,191.64,191.6,2.6106]
[1736420892312,2.6101,191.65,191.62,2.6104]
[1736420893511,2.6101,191.65,191.62,2.6105]
[1736420894012,10.44332575,191.69,191.64,2.6101]
[1736420894209,15.04332575,191.72,191.59,10.44332575]
[1736420894406,10.44332575,191.72,191.62,10.44332575]
[1736420894601,10.44332575,191.75,191.69,2.6094]
[1736420894801,8.80061622,191.76,191.63,3.1236]
[1736420895005,144.36950245,191.78,191.65,10.44332575]
[1736420895006,8.80061622,191.77,191.65,10.44332575]
[1736420895201,8.80061622,191.77,191.69,2.6094]
[1736420895414,10.44332575,191.78,191.69,2.6094]
[1736420896106,15.04332575,191.78,191.69,2.6094]
[1736420897110,15.04332575,191.78,191.65,10.44332575]
[1736420897311,15.04332575,191.78,191.68,2.6096]
[1736420898305,15.04332575,191.78,191.65,10.44332575]
[1736420898512,10.44332575,191.75,191.66,2.6098]
[1736420898914,2.6091,191.73,191.66,2.6098]
[1736420899112,10.44332575,191.75,191.66,2.6098]
[1736420899308,15.04332575,191.78,191.66,2.6098]
[1736420899508,0.80471148,191.77,191.66,2.6098]
[1736420899805,15.04332575,191.78,191.63,3.1236]
[1736420900308,2.6091,191.72,191.68,2.6096]
[1736420900517,2.6091,191.72,191.63,3.1236]
[1736420901016,2.6091,191.72,191.67,2.6097]
[1736420901314,2.6092,191.71,191.67,2.6097]
[1736420901912,2.6091,191.72,191.68,2.6096]
[1736420902714,2.6091,191.72,191.69,2.6095]
[1736420902916,15.04332575,191.78,191.63,3.1236]
[1736420903309,2.6089,191.74,191.7,2.6093]
[1736420904509,10.44332575,191.78,191.63,3.1236]
[1736420905208,2.6093,191.71,191.67,2.6098]
[1736420905409,10.44332575,191.78,191.65,10.44332575]
[1736420906111,10.44332575,191.78,191.68,10.44332575]
[1736420906505,2.6088,191.75,191.71,2.6092]
[1736420906910,4.58,191.8,191.68,10.44332575]
[1736420907110,2.6085,191.77,191.72,2.609]
[1736420907513,2.6087,191.76,191.72,2.609]
[1736420910218,2.6088,191.74,191.7,2.6093]
[1736420910416,15.02332575,191.81,191.7,2.6093]
[1736420910623,4.58,191.8,191.68,10.44332575]
[1736420911015,2.6088,191.75,191.68,10.44332575]
[1736420911211,4.58,191.8,191.68,10.44332575]
[1736420911414,10.44332575,191.81,191.68,10.44332575]
[1736420911624,10.44332575,191.81,191.69,1.5583]
[1736420911816,4.58,191.83,191.71,10.44332575]
[1736420912015,19.22434639,191.84,191.72,1.5361]
[1736420912412,10.44332575,191.87,191.74,10.44332575]
[1736420912920,2.6075,191.84,191.77,2.6083]
[1736420913116,2.6075,191.84,191.74,10.44332575]
[1736420914221,2.6076,191.83,191.79,2.608]
[1736420915017,2.6076,191.83,191.8,2.608]
[1736420916115,9.2103,191.89,191.82,2.6077]
[1736420916310,7.7256,191.89,191.77,10.44332575]
[1736420916818,2.6077,191.82,191.78,2.6083]
[1736420917220,10.44332575,191.87,191.74,15.02332575]
[1736420917821,2.6076,191.84,191.77,2.6083]
[1736420918022,2.6076,191.84,191.74,15.02332575]
[1736420918823,2.6076,191.83,191.74,15.02332575]
[1736420919017,2.6076,191.83,191.78,2.6082]
[1736420920023,2.6076,191.83,191.74,15.02332575]
[1736420920318,2.6075,191.84,191.74,15.02332575]
[1736420921024,2.6072,191.87,191.77,10.44332575]
[1736420921221,10.44332575,191.9,191.78,3.0251]
[1736420922428,2.6071,191.87,191.83,2.6075]
[1736420922925,10.44332575,191.9,191.78,3.0251]
[1736420923118,2.6074,191.85,191.78,3.0251]
[1736420923323,10.44332575,191.9,191.77,10.44332575]
[1736420923627,10.44332575,191.87,191.77,10.44332575]
[1736420923828,2.6075,191.84,191.79,2.6081]
[1736420924327,2.6075,191.84,191.77,10.44332575]
[1736420924525,4.58,191.92,191.77,10.44332575]
[1736420924526,2.6073,191.86,191.77,10.44332575]
[1736420925533,2.6073,191.86,191.82,2.6076]
[1736420926230,2.6073,191.86,191.77,10.44332575]
[1736420926430,2.6073,191.86,191.83,2.6076]
[1736420927231,2.607,191.88,191.84,2.6075]
[1736420929129,2.607,191.88,191.85,2.6073]
[1736420929529,2.607,191.88,191.83,6.68255604]
[1736420929730,2.6071,191.87,191.84,2.6074]
[1736420929924,6.68255604,191.87,191.81,6.68255604]
[1736420930124,6.68255604,191.87,191.83,2.6075]
[1736420930430,6.68255604,191.89,191.81,6.68255604]
[1736420930832,6.68255604,191.89,191.83,6.68255604]
[1736420931430,6.68255604,191.89,191.84,2.6074]
[1736420932929,2.607,191.88,191.84,2.6074]
[1736420933624,2.6071,191.87,191.83,2.6076]
[1736420934131,2.6071,191.87,191.81,6.68255604]
[1736420934132,6.68255604,191.85,191.8,2.6079]
[1736420934529,6.68255604,191.85,191.79,6.68255604]
[1736420934734,6.68255604,191.85,191.76,5.24749246]
[1736420935036,9.28995604,191.85,191.81,2.6078]
[1736420935237,6.68255604,191.85,191.76,5.24749246]
[1736420935537,6.68255604,191.85,191.79,6.68255604]
[1736420935739,6.68255604,191.87,191.79,6.68255604]
[1736420936337,2.6073,191.86,191.82,2.6077]
[1736420938637,6.68255604,191.85,191.76,5.24749246]
[1736420938838,2.6078,191.82,191.79,2.6081]
[1736420940040,2.6076,191.83,191.79,2.6081]
[1736420940437,6.68255604,191.85,191.78,6.68255604]
[1736420940742,6.68255604,191.85,191.8,6.68255604]
[1736420940945,6.68255604,191.87,191.83,2.6076]
[1736420941745,9.28965604,191.87,191.84,2.6075]
[1736420942544,9.28965604,191.87,191.85,2.6073]
[1736420943345,2.6069,191.89,191.85,2.6073]
[1736420943538,6.68255604,191.9,191.85,2.6073]
[1736420943939,3.1581,191.95,191.86,6.68255604]
[1736420943940,7.7181,191.95,191.86,6.68255604]
[1736420944234,6.68255604,191.93,191.86,6.68255604]
[1736420944439,6.68255604,191.93,191.88,2.6069]
[1736420944735,2.6065,191.92,191.86,6.68255604]
[1736420945135,6.68255604,191.93,191.88,6.68255604]
[1736420946243,2.6064,191.92,191.89,2.6068]
[1736420946440,6.68255604,191.93,191.88,6.68255604]
[1736420946844,6.68255604,191.93,191.87,2.6069]
[1736420947039,6.68255604,191.91,191.87,2.6069]
[1736420947640,9.28905604,191.91,191.88,2.6069]
[1736420951246,9.28905604,191.91,191.86,6.68255604]
[1736420951539,6.68255604,191.91,191.84,6.68255604]
[1736420952736,6.68255604,191.91,191.86,6.68255604]
[1736420953545,9.28905604,191.91,191.87,2.607]
[1736420953746,9.28905604,191.91,191.86,6.68255604]
[1736420956046,9.28905604,191.91,191.87,2.607]
[1736420956247,9.28905604,191.91,191.86,6.68255604]
[1736420956947,6.68255604,191.91,191.86,6.68255604]
[1736420957149,2.6064,191.92,191.86,6.68255604]
[1736420958149,2.6064,191.92,191.89,2.6068]
[1736420959451,6.68255604,191.93,191.86,6.68255604]
[1736420959751,6.68255604,191.91,191.84,6.68255604]
[1736420960145,2.6067,191.9,191.86,2.6071]
[1736420960345,6.68255604,191.91,191.86,2.6071]
[1736420961154,2.6069,191.89,191.86,2.6071]
[1736420961356,6.68255604,191.87,191.81,6.68255604]
[1736420961751,9.28965604,191.87,191.81,6.68255604]
[1736420963055,9.28965604,191.87,191.83,2.6075]
[1736420964456,1.5527,191.95,191.86,2.6072]
[1736420964457,9.28945604,191.89,191.86,2.6072]
[1736420964657,6.68255604,191.91,191.86,2.6072]
[1736420965158,2.6067,191.9,191.86,2.6072]
[1736420965353,2.6067,191.9,191.83,6.68255604]
[1736420965554,2.6067,191.9,191.87,2.607]
[1736420966656,2.6068,191.89,191.86,2.6071]
[1736420966959,6.68255604,191.91,191.83,6.68255604]
[1736420967649,2.6067,191.9,191.86,2.6071]
[1736420968060,2.6067,191.9,191.83,6.68255604]
[1736420968261,2.6067,191.9,191.87,2.607]
[1736420970861,2.6068,191.89,191.87,2.607]
[1736420971663,2.6067,191.9,191.87,2.607]
[1736420973362,1.5527,191.95,191.87,2.607]
[1736420973565,6.68255604,191.95,191.87,6.68255604]
[1736420974467,2.6062,191.94,191.89,6.68255604]
[1736420975160,2.6062,191.94,191.9,2.6066]
[1736420975559,2.6062,191.93,191.9,2.6066]
[1736420979664,2.6062,191.93,191.89,6.68255604]
[1736420979964,2.6062,191.93,191.89,9.28935604]
[1736420980764,6.68255604,191.94,191.8,3.1128]
[1736420980960,2.6067,191.9,191.86,6.68255604]
[1736420981466,180.46187807,192.05,191.88,6.68255604]
[1736420981768,181.93287807,192.05,191.95,6.68255604]
[1736420981961,155.91800879,192.02,191.97,2.6056]
[1736420982162,153.31290879,192.02,191.97,2.6056]
[1736420982560,2.6053,192.01,191.97,2.6056]
[1736420983666,0.1966,192.02,191.95,6.68255604]
[1736420983860,0.1966,192.02,191.98,2.6055]
[1736420984261,0.1966,192.02,192.0,2.6052]
[1736420986168,2.8016,192.02,191.91,4.54]
[1736420986368,2.8016,192.02,191.96,6.68255604]
[1736420986764,2.6052,192.01,191.96,9.28825604]
[1736420987165,6.68255604,192.01,191.96,6.68255604]
[1736420987468,2.6056,191.98,191.94,6.68255604]
[1736420988462,2.6057,191.97,191.94,6.68255604]
[1736420988663,6.68255604,191.98,191.92,8.23715604]
[1736420988859,6.68255604,191.98,191.92,6.68255604]
[1736420989056,6.68255604,191.96,191.89,1.6182]
[1736420989262,6.68255604,191.96,191.89,8.30075604]
[1736420989767,2.6063,191.93,191.89,8.30075604]
[1736420990071,6.68255604,191.94,191.87,6.68255604]
[1736420990263,6.68255604,191.92,191.86,4.54]
[1736420990464,6.68255604,191.92,191.85,9.28985604]
[1736420990659,6.68255604,191.92,191.85,6.68255604]
[1736420990865,2.6069,191.89,191.85,6.68255604]
[1736420992069,9.28925604,191.9,191.85,9.28985604]
[1736420994070,2.6067,191.9,191.85,9.28985604]
[1736420994272,2.6064,191.93,191.89,6.68255604]
[1736420994564,6.68255604,191.95,191.89,6.68255604]
[1736420994771,6.68255604,191.93,191.87,6.68255604]
[1736420995170,6.68255604,191.95,191.89,6.68255604]
[1736420995670,2.606,191.95,191.91,6.68255604]
[1736420997272,2.6061,191.94,191.9,2.6065]
[1736420999167,6.68255604,191.93,191.84,1.6131]
[1736420999369,6.68255604,191.93,191.87,6.68255604]
[1736420999969,2.6066,191.91,191.87,6.68255604]
[1736421000164,6.68255604,191.93,191.87,6.68255604]
[1736421000369,4.54,192.02,191.91,6.68255604]
[1736421000672,6.68255604,191.97,191.91,9.28895604]
[1736421001972,2.606,191.95,191.91,9.28895604]
[1736421002174,2.606,191.95,191.92,2.6064]
[1736421002374,2.6061,191.94,191.89,6.68255604]
[1736421003074,2.6061,191.94,191.9,2.6066]
[1736421004275,6.68255604,191.95,191.87,6.68255604]
[1736421005976,6.68255604,191.93,191.87,6.68255604]
[1736421006371,2.6065,191.92,191.88,2.6068]
[1736421007168,6.68255604,191.93,191.87,6.68255604]
[1736421007374,6.68255604,191.97,191.89,6.68255604]
[1736421007884,6.68255604,191.99,191.93,9.28875604]
[1736421008079,6.68255604,191.99,191.93,6.68255604]
[1736421008480,8.21425604,192.01,191.95,6.68255604]
[1736421008779,6.68255604,192.01,191.95,6.68255604]
[1736421008979,6.68255604,192.03,191.97,6.68255604]
[1736421009978,6.68255604,192.05,191.97,6.68255604]
[1736421011080,9.28755604,192.03,191.99,2.6053]
[1736421011380,6.68255604,192.03,191.99,2.6053]
[1736421012179,2.605,192.02,191.99,2.6053]
[1736421012770,6.68255604,192.03,191.99,2.6053]
[1736421012976,9.28745604,192.03,191.99,2.6053]
[1736421013172,6.68255604,192.03,191.97,6.68255604]
[1736421013378,6.68255604,192.03,192.01,2.6051]
[1736421013577,9.28745604,192.03,191.97,6.68255604]
[1736421013775,1.524,192.08,192.0,2.6053]
[1736421014077,6.68255604,192.05,191.99,6.68255604]
[1736421014376,2.6048,192.04,191.99,6.68255604]
[1736421015283,2.6048,192.04,192.01,2.6052]
[1736421018184,2.6045,192.06,192.02,2.6049]
[1736421018381,9.28705604,192.06,192.02,2.6049]
[1736421018981,6.68255604,192.06,192.04,2.6047]
[1736421019183,6.68255604,192.08,192.01,6.68255604]
[1736421019582,9.28685604,192.08,192.03,2.6049]
[1736421019782,9.28685604,192.08,192.01,6.68255604]
[1736421020181,6.68255604,192.08,192.04,2.6047]
[1736421020387,2.6045,192.06,192.01,6.68255604]
[1736421020689,2.6045,192.06,192.02,2.6049]
[1736421022090,6.68255604,192.08,192.01,6.68255604]
[1736421022290,3.04,192.11,191.97,6.68255604]
[1736421022291,6.68255604,192.04,191.97,6.68255604]
[1736421022784,6.68255604,192.06,191.99,6.68255604]
[1736421022988,6.68255604,192.06,192.01,6.68255604]
[1736421023184,6.68255604,192.08,192.01,6.68255604]
[1736421023390,2.6044,192.07,192.03,2.6048]
[1736421024187,2.6045,192.06,192.03,2.6048]
[1736421024890,9.28705604,192.06,192.02,2.605]
[1736421025090,2.6046,192.05,192.02,2.605]
[1736421025290,6.68255604,192.06,192.02,2.605]
[1736421025693,9.28705604,192.06,192.03,2.6049]
[1736421027586,2.6048,192.04,191.99,6.68255604]
[1736421027792,6.68255604,192.06,191.99,6.68255604]
[1736421027983,2.6048,192.04,192.0,2.6052]
[1736421028191,6.68255604,192.06,192.01,6.68255604]
[1736421028689,2.6045,192.06,192.01,6.68255604]
[1736421029296,9.28685604,192.08,192.04,2.6046]
[1736421030896,2.6041,192.09,192.05,2.6045]
[1736421033703,6.68255604,192.1,192.05,2.6045]
[1736421034000,2.6042,192.08,192.05,2.6045]
[1736421034200,9.28675604,192.08,192.05,2.6045]
[1736421036001,2.6042,192.08,192.05,2.6045]
[1736421037604,2.6042,192.08,192.03,6.68255604]
[1736421037605,2.6045,192.07,192.04,2.6047]
[1736421040001,2.6045,192.07,192.03,6.68255604]
[1736421040201,2.6045,192.07,192.03,9.28735604]
[1736421040601,2.6045,192.07,192.03,6.68255604]
[1736421040895,2.6045,192.07,192.04,2.6047]
[1736421044700,6.68255604,192.06,191.96,4.54]
[1736421044895,6.68255604,192.06,191.99,6.68255604]
[1736421045505,6.68255604,192.06,192.0,2.6053]
[1736421045506,2.6048,192.04,192.0,2.6053]
[1736421045703,6.68255604,192.04,191.97,6.68255604]
[1736421046310,2.6051,192.02,191.98,2.6055]
[1736421046808,2.6051,192.02,191.99,6.68255604]
[1736421047009,2.6049,192.03,191.99,9.28785604]
[1736421047205,6.68255604,192.06,191.99,6.68255604]
[1736421047709,2.6048,192.04,191.99,6.68255604]
[1736421048107,2.6048,192.04,192.0,2.6052]
[1736421048506,2.6048,192.04,191.99,6.68255604]
[1736421049210,2.6048,192.04,192.01,2.6051]
[1736421049516,6.68255604,192.08,192.03,6.68255604]
[1736421050221,2.6044,192.07,192.03,6.68255604]
[1736421050406,6.68255604,192.08,192.01,6.68255604]
[1736421051315,6.68255604,192.08,192.02,2.605]
[1736421051516,6.68255604,192.06,192.02,2.605]
[1736421052215,1.6137,192.14,192.02,6.68255604]
[1736421052517,6.68255604,192.08,192.05,2.6046]
[1736421053313,2.6043,192.07,192.04,2.6047]
[1736421053716,6.68255604,192.08,192.02,6.68255604]
[1736421053915,9.28685604,192.08,192.05,2.6045]
[1736421056520,2.604,192.1,192.07,2.6043]
[1736421056821,6.68255604,192.12,192.06,6.68255604]
[1736421057523,9.28635604,192.12,192.08,2.6041]
[1736421057923,6.68255604,192.12,192.08,2.6041]
[1736421058124,2.6038,192.11,192.08,2.6041]
[1736421059812,2.6037,192.12,192.09,2.6041]
[1736421062415,2.6035,192.14,192.08,6.68255604]
[1736421062620,0.24686,192.16,192.12,6.68255604]
[1736421062816,0.24686,192.16,192.14,6.68255604]
[1736421063028,0.24686,192.16,192.15,2.6033]
[1736421064823,0.24686,192.16,192.14,6.68255604]
[1736421065824,0.24686,192.16,192.13,6.68255604]
[1736421066232,2.6036,192.13,192.11,6.68255604]
[1736421066528,6.68255604,192.14,192.07,6.68255604]
[1736421066734,2.6041,192.09,192.06,2.6044]
[1736421067033,2.6041,192.09,192.05,6.68255604]
[1736421067332,2.6043,192.08,192.05,6.68255604]
[1736421068331,2.6043,192.08,192.04,2.6047]
[1736421068634,2.6044,192.07,192.03,2.6049]
[1736421070132,9.28675604,192.08,192.03,2.6049]
[1736421070728,2.6037,192.12,192.08,2.6042]
[1736421071035,0.24686,192.16,192.08,6.68255604]
[1736421071234,6.68255604,192.15,192.08,6.68255604]
[1736421071836,6.92941604,192.16,192.1,6.68255604]
[1736421072033,0.24686,192.16,192.12,6.68255604]
[1736421072331,0.24686,192.16,192.14,6.68255604]
[1736421072532,0.24686,192.16,192.15,2.6033]
[1736421077836,2.6021,192.24,192.19,2.6026]
[1736421078239,2.6021,192.24,192.15,10.40711117]
[1736421079136,2.6021,192.24,192.2,2.6025]
[1736421082047,3.0952,192.27,192.2,2.6025]
[1736421082244,10.40711117,192.25,192.15,10.40711117]
[1736421082444,3.0952,192.27,192.15,10.40711117]
[1736421082644,2.6022,192.24,192.2,2.6025]
[1736421083941,2.6023,192.23,192.19,2.6027]
[1736421085046,2.6023,192.23,192.15,10.40711117]
[1736421085242,2.6023,192.23,192.2,2.6026]
[1736421086538,3.0952,192.27,192.15,10.40711117]
[1736421086742,0.80241158,192.26,192.15,10.40711117]
[1736421087140,2.6027,192.2,192.16,2.603]
[1736421087539,2.6027,192.2,192.15,10.40711117]
[1736421088344,2.6025,192.21,192.17,2.6029]
[1736421088539,2.6025,192.21,192.15,10.40711117]
[1736421088940,3.0952,192.27,192.15,10.40711117]
[1736421089152,2.6021,192.24,192.2,2.6025]
[1736421090751,2.6022,192.23,192.2,2.6025]
[1736421090953,3.0952,192.27,192.2,2.6025]
[1736421091345,2.6022,192.24,192.2,2.6025]
[1736421091947,2.6022,192.23,192.2,2.6025]
[1736421096557,2.6017,192.27,192.24,2.602]
[1736421096758,2.6017,192.27,192.23,6.6577749]
[1736421098553,3.1955,192.35,192.25,6.6577749]
[1736421098853,6.6577749,192.33,192.25,6.6577749]
[1736421099049,3.1955,192.35,192.27,6.6577749]
[1736421099251,2.6011,192.32,192.27,6.6577749]
[1736421099554,6.6577749,192.33,192.28,2.6015]
[1736421099954,3.1955,192.35,192.18,4.54]
[1736421099955,6.6577749,192.31,192.25,6.6577749]
[1736421100249,6.6577749,192.29,192.23,6.6577749]
[1736421100452,6.6577749,192.29,192.18,4.54]
[1736421100453,2.6021,192.26,192.18,4.54]
[1736421100653,6.6577749,192.27,192.21,6.6577749]
[1736421101055,2.6023,192.25,192.21,9.2603749]
[1736421101952,2.6023,192.24,192.21,2.6026]
[1736421102149,6.6577749,192.27,192.21,9.2603749]
[1736421102659,2.6023,192.25,192.21,9.2603749]
[1736421102854,3.1955,192.35,192.21,6.6577749]
[1736421103159,2.6019,192.27,192.23,2.6023]
[1736421103359,6.6577749,192.3,192.23,6.6577749]
[1736421104460,2.6019,192.28,192.24,2.6023]
[1736421104763,6.6577749,192.28,192.14,1.495]
[1736421104962,6.6577749,192.28,192.21,2.6027]
[1736421104963,2.6023,192.25,192.21,2.6027]
[1736421105262,6.6577749,192.28,192.22,6.6577749]
[1736421105660,6.6577749,192.3,192.24,6.6577749]
[1736421106165,2.602,192.27,192.24,6.6577749]
[1736421106363,6.6577749,192.3,192.24,6.6577749]
[1736421106958,2.6022,192.26,192.24,6.6577749]
[1736421107364,2.6019,192.27,192.24,9.2600749]
[1736421107864,2.6019,192.27,192.24,6.6577749]